bitfinex/quotes_BTCUSD_20250527
["timestamp","ask_amount","ask_price","bid_price","bid_amount"]
[1748334945035,0.3256332,109570.0,109560.0,0.62191332]
[1748334945471,0.3266332,109570.0,109560.0,0.62191332]
[1748334945677,0.3276332,109570.0,109560.0,0.62191332]
[1748334946250,0.33675978,109570.0,109560.0,0.62191332]
[1748334946978,0.14510149,109570.0,109560.0,0.63104015]
[1748334947392,0.3276332,109570.0,109560.0,0.63104015]
[1748334948299,0.33675978,109570.0,109560.0,0.63104015]
[1748334948431,0.33675978,109570.0,109560.0,0.62191332]
[1748334948643,0.32763387,109570.0,109560.0,0.62191332]
[1748334948853,0.37865029,109570.0,109560.0,0.62191332]
[1748334949615,0.14510216,109570.0,109560.0,0.63104015]
[1748334950499,0.32763387,109570.0,109560.0,0.63104015]
[1748334951642,0.32763387,109570.0,109560.0,0.62191332]
[1748334951985,0.32763387,109570.0,109560.0,0.26844331]
[1748334952193,0.32763387,109570.0,109560.0,0.62191366]
[1748334952408,0.31850771,109570.0,109560.0,0.62191366]
[1748334952622,0.36861152,109570.0,109560.0,0.62191366]
[1748334953341,0.35948511,109570.0,109560.0,0.61278666]
[1748334953549,0.35948511,109570.0,109560.0,0.62191382]
[1748334954762,0.3093813,109570.0,109560.0,0.62191382]
[1748334954903,0.3093813,109570.0,109560.0,0.26844347]
[1748334955713,0.3093813,109570.0,109560.0,0.27757055]
[1748334956140,0.3093813,109570.0,109560.0,0.19018344]
[1748334956991,0.3002548,109570.0,109560.0,0.18105636]
[1748334961090,0.3002548,109570.0,109560.0,0.19018344]
[1748334961503,0.3002548,109570.0,109560.0,0.54365379]
[1748334962439,0.3002548,109570.0,109560.0,0.55278079]
[1748334963804,0.30938113,109570.0,109560.0,0.5619077]
[1748334964029,0.01905095,109570.0,109560.0,0.89278045]
[1748334964264,0.01905095,109570.0,109560.0,0.91760728]
[1748334964503,0.01905095,109570.0,109560.0,1.27125028]
[1748334965038,0.01905095,109570.0,109560.0,1.28508103]
[1748334965231,0.01905095,109570.0,109560.0,1.27463903]
[1748334966872,0.01905095,109570.0,109560.0,1.15317003]
[1748334967087,0.01905095,109570.0,109560.0,1.09036803]
[1748334967754,0.01905095,109570.0,109560.0,1.10126865]
[1748334968372,0.002,109570.0,109560.0,1.10126865]
[1748334968664,0.002,109570.0,109560.0,1.09036803]
[1748334974185,0.002,109570.0,109560.0,0.73689768]
[1748334974353,0.002,109570.0,109560.0,1.09036803]
[1748334977721,0.002,109570.0,109560.0,1.49232803]
[1748334978549,0.001,109570.0,109560.0,1.49232803]
[1748334978738,0.001,109570.0,109560.0,1.58187359]
[1748334978945,0.001,109570.0,109560.0,1.60983511]
[1748334979349,0.002,109590.0,109580.0,0.56629128]
[1748334979497,0.01112417,109590.0,109580.0,1.19340163]
[1748334980181,0.002,109590.0,109580.0,1.19340163]
[1748334981332,0.004,109590.0,109580.0,1.19340163]
[1748334981696,0.01312425,109590.0,109580.0,1.19340163]
[1748334982043,0.01312417,109590.0,109580.0,1.19340163]
[1748334982460,0.0222485,109590.0,109580.0,1.19340163]
[1748334982797,0.0394485,109590.0,109580.0,0.90336163]
[1748334983495,0.04857292,109590.0,109580.0,0.90336163]
[1748334984669,0.03032417,109590.0,109580.0,0.90336163]
[1748334984880,0.03944842,109590.0,109580.0,0.90336163]
[1748334985046,0.04857275,109590.0,109580.0,0.90336163]
[1748334985453,0.05769725,109590.0,109580.0,0.54989128]
[1748334985776,0.04857275,109590.0,109580.0,0.90336163]
[1748334986006,0.005,109590.0,109580.0,0.91956163]
[1748334986407,0.01412417,109590.0,109580.0,0.91956163]
[1748334987728,0.005,109590.0,109580.0,0.91956163]
[1748334988541,0.01412425,109590.0,109580.0,0.91956163]
[1748334989446,0.02324867,109590.0,109580.0,0.91956163]
[1748334989593,0.03072425,109590.0,109580.0,1.17700163]
[1748334990040,0.03984867,109590.0,109580.0,0.82353128]
[1748334990277,0.03984867,109590.0,109580.0,1.17700163]
[1748334991142,0.03072425,109590.0,109580.0,1.17700163]
[1748334991488,0.03984867,109590.0,109580.0,1.17700163]
[1748334992014,0.03072425,109590.0,109580.0,1.17700163]
[1748334992195,0.03984867,109590.0,109580.0,1.17700163]
[1748334992404,0.05691385,109590.0,109580.0,1.17700163]
[1748334992609,0.04778943,109590.0,109580.0,0.90336163]
[1748334992762,0.05691385,109590.0,109580.0,1.17700163]
[1748334993199,0.05691376,109590.0,109580.0,1.17700163]
[1748334993648,0.04778943,109590.0,109580.0,1.17700163]
[1748334993851,0.02206518,109590.0,109580.0,1.19340163]
[1748334994263,0.03118943,109590.0,109580.0,1.19340163]
[1748334994467,0.02206518,109590.0,109580.0,1.19340163]
[1748334994909,0.03118935,109590.0,109580.0,1.19340163]
[1748334995109,0.04708935,109590.0,109580.0,0.56629128]
[1748334995364,0.05621368,109590.0,109580.0,0.90336163]
[1748334995767,0.06533818,109590.0,109580.0,0.90336163]
[1748334995967,0.06278935,109590.0,109580.0,1.17700163]
[1748334996103,0.07221368,109590.0,109580.0,0.90336163]
[1748334996314,0.07221368,109590.0,109580.0,1.17700163]
[1748334996514,0.0813381,109590.0,109580.0,1.17700163]
[1748334996865,0.09046268,109590.0,109580.0,1.17700163]
[1748334997022,0.18913299,109590.0,109580.0,0.90336163]
[1748334997702,0.18000824,109590.0,109580.0,0.90336163]
[1748334997903,0.18913291,109590.0,109580.0,0.90336163]
[1748334998471,0.16175924,109590.0,109580.0,0.90336163]
[1748334998777,0.17088374,109590.0,109580.0,0.90336163]
[1748334999219,0.18000849,109590.0,109580.0,0.90336163]
[1748334999352,0.17088374,109590.0,109580.0,0.90336163]
[1748334999554,0.18000841,109590.0,109580.0,0.90336163]
[1748335000401,0.36250681,109590.0,109580.0,0.89423647]
[1748335000556,0.35338306,109590.0,109580.0,0.54989128]
[1748335000896,0.23359601,109590.0,109580.0,0.5590167]
[1748335001140,0.41609441,109590.0,109580.0,0.56814186]
[1748335001340,0.23359601,109590.0,109580.0,0.56814186]
[1748335001518,0.18000949,109590.0,109580.0,0.56814186]
[1748335001830,0.36250789,109590.0,109580.0,0.34]
[1748335002053,0.34425872,109590.0,109580.0,0.34]
[1748335002274,0.22284063,109580.0,109570.0,0.01090062]
[1748335002527,0.19165829,109570.0,109560.0,0.20272473]
[1748335002758,0.33849536,109570.0,109560.0,0.57444966]
[1748335002997,0.33849536,109570.0,109560.0,0.92357674]
[1748335003941,0.33849536,109570.0,109560.0,0.91644966]
[1748335004194,0.33849536,109570.0,109560.0,0.91467612]
[1748335004370,0.3957659,109570.0,109560.0,0.91467612]
[1748335004575,0.3957659,109570.0,109560.0,0.56120577]
[1748335004813,0.68394675,109570.0,109560.0,0.00214898]
[1748335005279,0.68394675,109570.0,109560.0,0.00414898]
[1748335005739,0.68394675,109570.0,109560.0,0.00214898]
[1748335005979,0.68394675,109570.0,109560.0,0.00414898]
[1748335006367,0.68394675,109570.0,109560.0,0.00214898]
[1748335006789,0.68394675,109570.0,109560.0,0.00414898]
[1748335007011,0.68394675,109570.0,109560.0,0.00214898]
[1748335007211,0.68394675,109570.0,109560.0,0.00014898]
[1748335007416,0.68394675,109570.0,109560.0,0.00114898]
[1748335008378,0.66688157,109570.0,109560.0,0.00114898]
[1748335008617,0.68391588,109570.0,109560.0,0.00114898]
[1748335009373,0.6839093,109570.0,109560.0,0.00114898]
[1748335013057,0.74689221,109570.0,109560.0,0.00114898]
[1748335015369,0.74689221,109570.0,109560.0,0.00014898]
[1748335016199,0.74889221,109570.0,109560.0,0.00014898]
[1748335016524,0.74989221,109570.0,109560.0,0.00014898]
[1748335017196,0.22347562,109560.0,109550.0,0.00123786]
[1748335017329,0.82061042,109560.0,109550.0,0.00123786]
[1748335018974,0.82061042,109560.0,109550.0,0.00223786]
[1748335019148,0.80358269,109560.0,109550.0,0.00223786]
[1748335019746,0.71406118,109560.0,109550.0,0.00223786]
[1748335020534,0.73108891,109560.0,109550.0,0.00223786]
[1748335024341,1.09910011,109560.0,109550.0,0.00223786]
[1748335024550,0.34458976,109560.0,109550.0,0.00223786]
[1748335024747,1.01938976,109560.0,109550.0,0.00223786]
[1748335024997,1.10891127,109560.0,109550.0,0.00223786]
[1748335025518,0.34458976,109560.0,109550.0,0.00223786]
[1748335025683,1.02318976,109560.0,109550.0,0.00323786]
[1748335026882,1.00658976,109560.0,109550.0,0.00223786]
[1748335027456,1.00858976,109560.0,109550.0,0.00223786]
[1748335027660,1.02438976,109560.0,109550.0,0.00223786]
[1748335027991,1.11395127,109560.0,109550.0,0.00223786]
[1748335033395,1.13946079,109560.0,109550.0,0.00223786]
[1748335033815,2.53713114,109560.0,109550.0,0.00223786]
[1748335034047,0.23693396,109550.0,109540.0,0.002]
[1748335034263,0.70545939,109550.0,109540.0,0.002]
[1748335034467,0.7949809,109550.0,109540.0,0.002]
[1748335034846,0.36901677,109550.0,109540.0,0.002]
[1748335035048,1.04389677,109550.0,109540.0,0.002]
[1748335035230,1.81360712,109550.0,109540.0,0.002]
[1748335035429,1.80027695,109550.0,109540.0,0.002]
[1748335035641,1.3968066,109550.0,109540.0,0.002]
[1748335035845,0.81144811,109550.0,109540.0,0.002]
[1748335036044,1.04234575,109550.0,109540.0,0.002]
[1748335036245,1.0568866,109550.0,109540.0,0.002]
[1748335036438,1.0578866,109550.0,109540.0,0.002]
[1748335036640,1.06074931,109550.0,109540.0,0.002]
[1748335037662,2.45869001,109550.0,109540.0,0.002]
[1748335037874,2.23504521,109550.0,109540.0,0.002]
[1748335038083,2.205651,109550.0,109540.0,0.002]
[1748335038208,2.26841888,109550.0,109540.0,0.002]
[1748335038671,2.26641888,109550.0,109540.0,0.002]
[1748335038832,0.88745146,109540.0,109530.0,0.00060479]
[1748335039034,1.46252613,109540.0,109530.0,0.00060479]
[1748335039237,1.47785639,109540.0,109530.0,0.00060479]
[1748335039405,1.78985639,109540.0,109530.0,0.00060479]
[1748335040261,1.79285639,109540.0,109530.0,0.00060479]
[1748335040843,1.72453932,109530.0,109520.0,0.002]
[1748335040968,1.92063412,109530.0,109520.0,0.002]
[1748335041178,1.94614364,109530.0,109520.0,0.002]
[1748335042160,2.70751967,109530.0,109520.0,0.002]
[1748335042389,2.98635967,109530.0,109520.0,0.003]
[1748335042565,3.00085958,109530.0,109520.0,0.003]
[1748335042992,1.97230923,109530.0,109520.0,0.003]
[1748335043190,2.94997958,109530.0,109520.0,0.003]
[1748335043370,3.00297958,109530.0,109520.0,0.003]
[1748335043812,2.99935206,109530.0,109520.0,0.003]
[1748335044012,2.32515206,109530.0,109520.0,0.003]
[1748335044176,3.07160107,109530.0,109520.0,0.003]
[1748335044616,0.20089429,109510.0,109500.0,0.012]
[1748335044775,0.37588361,109510.0,109500.0,0.012]
[1748335044962,0.39198361,109510.0,109500.0,0.012]
[1748335045360,0.3329771,109510.0,109500.0,0.027]
[1748335045947,0.3349771,109510.0,109500.0,0.028]
[1748335046982,0.30946758,109510.0,109500.0,0.028]
[1748335047192,0.32400843,109510.0,109500.0,0.0433]
[1748335048344,0.30946758,109510.0,109500.0,0.0433]
[1748335051123,0.30946758,109510.0,109500.0,0.23508073]
[1748335051324,0.30946758,109510.0,109500.0,0.0433]
[1748335053647,0.39902909,109510.0,109500.0,0.0433]
[1748335057082,0.39902909,109510.0,109500.0,0.028]
[1748335059191,0.30950758,109510.0,109500.0,0.028]
[1748335059341,0.30950758,109510.0,109500.0,0.0066003]
[1748335064096,0.30950758,109510.0,109500.0,0.0232003]
[1748335066740,0.30950758,109510.0,109500.0,0.0066003]
[1748335067894,0.30950758,109510.0,109500.0,0.01514355]
[1748335068447,0.39902909,109510.0,109500.0,0.01514355]
[1748335068777,0.58338758,109510.0,109500.0,0.02574325]
[1748335068989,0.58338758,109510.0,109500.0,0.23382407]
[1748335069211,0.57425642,109510.0,109500.0,0.04204325]
[1748335069649,0.30037642,109510.0,109500.0,0.24295623]
[1748335070187,0.30037642,109510.0,109500.0,0.23382407]
[1748335070990,0.30037642,109510.0,109500.0,0.24295632]
[1748335072104,0.57425642,109510.0,109500.0,0.24295632]
[1748335072278,0.66260106,109510.0,109500.0,0.24295632]
[1748335072491,0.57425642,109510.0,109500.0,0.24295632]
[1748335073297,0.57425642,109510.0,109500.0,0.25208848]
[1748335073904,0.58338758,109510.0,109500.0,0.26122056]
[1748335074064,0.59251908,109510.0,109500.0,0.26122056]
[1748335074983,0.57425651,109510.0,109500.0,0.23382407]
[1748335075190,0.30037651,109510.0,109500.0,0.21752407]
[1748335075397,0.57425651,109510.0,109500.0,0.21752407]
[1748335075942,0.56512501,109510.0,109500.0,0.02574325]
[1748335076138,0.65464652,109510.0,109500.0,0.02574325]
[1748335076541,0.56512501,109510.0,109500.0,0.21752407]
[1748335077578,0.56512501,109510.0,109500.0,0.00954325]
[1748335078764,0.56512501,109510.0,109500.0,0.20849165]
[1748335078974,0.56512501,109510.0,109500.0,0.21762407]
[1748335079359,0.57425642,109510.0,109500.0,0.2267564]
[1748335079552,0.57425642,109510.0,109500.0,0.23588865]
[1748335079955,0.40075586,109510.0,109500.0,0.2541523]
[1748335080332,0.59251908,109510.0,109500.0,0.26002047]
[1748335080521,0.59251908,109510.0,109500.0,0.25088839]
[1748335080812,0.58338792,109510.0,109500.0,0.25088839]
[1748335081398,0.30950792,109510.0,109500.0,0.25088839]
[1748335081750,0.30950792,109510.0,109500.0,0.26002047]
[1748335083210,0.30950792,109510.0,109500.0,0.24502047]
[1748335085213,0.30950792,109510.0,109500.0,0.22675623]
[1748335085413,0.30037651,109510.0,109500.0,0.22675623]
[1748335085841,0.1177442,109510.0,109500.0,0.68866415]
[1748335086108,0.01906773,109510.0,109500.0,0.94594724]
[1748335086314,0.04646063,109510.0,109500.0,0.59247689]
[1748335086528,0.05559188,109510.0,109500.0,0.94594724]
[1748335086728,0.04646063,109510.0,109500.0,0.94594724]
[1748335087163,0.05559221,109510.0,109500.0,0.94594724]
[1748335087369,0.0464608,109510.0,109500.0,0.94694724]
[1748335087872,0.0464608,109510.0,109500.0,0.59347689]
[1748335088082,0.0464608,109510.0,109500.0,0.94694724]
[1748335088295,0.0444608,109510.0,109500.0,0.94594724]
[1748335088501,0.04446089,109510.0,109500.0,0.94594724]
[1748335088709,0.04546089,109510.0,109500.0,0.94694724]
[1748335089370,0.01806773,109510.0,109500.0,0.94694724]
[1748335089799,0.00104,109510.0,109500.0,0.94694724]
[1748335090429,0.00104,109510.0,109500.0,1.79608359]
[1748335090600,0.00104,109510.0,109500.0,2.31214515]
[1748335090960,0.00104,109510.0,109500.0,2.32592495]
[1748335091163,0.00104,109510.0,109500.0,2.33681517]
[1748335091566,0.00104,109510.0,109500.0,2.33581517]
[1748335091770,4e-05,109510.0,109500.0,2.33481517]
[1748335091984,0.05125372,109530.0,109520.0,0.21000627]
[1748335092199,0.05125372,109530.0,109520.0,0.51554627]
[1748335092407,0.03419251,109530.0,109520.0,0.86901662]
[1748335092930,0.00213603,109530.0,109520.0,1.06847218]
[1748335093370,0.00313603,109530.0,109520.0,1.06947218]
[1748335093573,0.00313603,109530.0,109520.0,1.41147218]
[1748335093790,0.00313603,109530.0,109520.0,1.4223624]
[1748335094197,0.03205648,109540.0,109530.0,0.58038711]
[1748335094398,0.03205648,109540.0,109530.0,5.67587316]
[1748335094802,0.03205648,109540.0,109530.0,5.68676338]
[1748335095537,0.03305648,109540.0,109530.0,5.69176338]
[1748335096481,0.001,109540.0,109530.0,5.69176338]
[1748335096835,0.001,109540.0,109530.0,5.69776338]
[1748335097249,0.01825191,109570.0,109560.0,0.90339996]
[1748335097495,0.02737807,109570.0,109560.0,0.90339996]
[1748335098249,0.0365044,109570.0,109560.0,0.93078413]
[1748335098453,0.04563081,109570.0,109560.0,0.93991096]
[1748335098794,0.04563065,109570.0,109560.0,0.94091096]
[1748335098964,0.04563065,109570.0,109560.0,0.91352696]
[1748335099554,0.02542566,109580.0,109570.0,0.20991046]
[1748335099729,0.13322238,109580.0,109570.0,0.20991046]
[1748335099939,0.13322238,109580.0,109570.0,0.20078446]
[1748335099940,0.31573743,109580.0,109570.0,0.20078446]
[1748335100138,0.31573743,109580.0,109570.0,0.19165821]
[1748335100338,0.30661202,109580.0,109570.0,0.19165821]
[1748335100800,0.30676125,109580.0,109570.0,0.19165821]
[1748335101612,0.30776125,109580.0,109570.0,0.19165821]
[1748335102314,0.30776125,109580.0,109570.0,0.19265821]
[1748335102494,0.29863559,109580.0,109570.0,0.19265821]
[1748335102670,0.31383559,109580.0,109570.0,0.19265821]
[1748335103551,0.31383559,109580.0,109570.0,0.19265829]
[1748335103864,0.30470984,109580.0,109570.0,0.01012658]
[1748335106307,0.30470984,109580.0,109570.0,0.20178479]
[1748335106512,0.28950984,109580.0,109570.0,0.21091112]
[1748335107257,0.28950984,109580.0,109570.0,0.20178479]
[1748335107717,0.28950984,109580.0,109570.0,0.21091112]
[1748335108385,0.28950984,109580.0,109570.0,0.55525514]
[1748335108726,0.28950984,109580.0,109570.0,0.56438155]
[1748335108934,0.28950984,109580.0,109570.0,0.22003753]
[1748335109369,0.09069479,109580.0,109570.0,0.58263338]
[1748335109578,0.1180702,109580.0,109570.0,0.93873338]
[1748335109823,0.1271957,109580.0,109570.0,0.93873338]
[1748335110011,0.13632128,109580.0,109570.0,0.93873338]
[1748335110620,0.1271957,109580.0,109570.0,0.93873338]
[1748335111097,0.13632128,109580.0,109570.0,0.93873338]
[1748335111312,0.1271957,109580.0,109570.0,0.93873338]
[1748335112173,0.1180702,109580.0,109570.0,0.93873338]
[1748335112389,0.1271957,109580.0,109570.0,0.93873338]
[1748335113006,0.12719578,109580.0,109570.0,0.93873338]
[1748335113847,0.30971083,109580.0,109570.0,0.93873338]
[1748335114056,0.31883724,109580.0,109570.0,0.92263338]
[1748335114255,0.31883724,109580.0,109570.0,0.56916303]
[1748335114461,0.1344707,109580.0,109570.0,0.56916303]
[1748335114865,0.11807061,109580.0,109570.0,0.56916303]
[1748335115112,0.00114923,109580.0,109570.0,0.93893338]
[1748335115318,0.00114923,109580.0,109570.0,0.95463338]
[1748335116323,0.00114923,109580.0,109570.0,0.98201738]
[1748335118453,0.00114923,109580.0,109570.0,0.62854703]
[1748335118659,0.00114923,109580.0,109570.0,0.98201738]
[1748335121048,0.01819032,109580.0,109570.0,0.98201738]
[1748335125756,0.01819032,109580.0,109570.0,0.62854703]
[1748335125923,0.01819032,109580.0,109570.0,0.98201738]
[1748335127972,0.01819032,109580.0,109570.0,0.96631738]
[1748335137524,0.01819032,109580.0,109570.0,0.95001738]
[1748335138429,0.01819032,109580.0,109570.0,0.59654703]
[1748335138641,0.01819032,109580.0,109570.0,0.95001738]
[1748335140819,0.01819032,109580.0,109570.0,0.94035652]
[1748335141053,0.01819032,109580.0,109570.0,0.58688617]
[1748335141236,0.01819032,109580.0,109570.0,0.94035652]
[1748335142189,0.01819032,109580.0,109570.0,0.95120308]
[1748335142735,0.00114923,109580.0,109570.0,1.43516364]
[1748335143595,0.00114923,109580.0,109570.0,1.42431708]
[1748335143987,0.00014923,109580.0,109570.0,1.43031708]
[1748335144431,0.00114923,109580.0,109570.0,1.42831708]
[1748335146382,0.00114923,109580.0,109570.0,1.07484673]
[1748335146635,0.00114923,109580.0,109570.0,1.43231708]
[1748335148472,0.00114923,109580.0,109570.0,0.41495017]
[1748335148684,0.03214923,109580.0,109570.0,0.60835652]
[1748335148904,0.03214923,109580.0,109570.0,0.89647143]
[1748335149322,0.03214923,109580.0,109570.0,1.23647143]
[1748335149526,0.01674923,109580.0,109570.0,1.23647143]
[1748335150120,0.01674923,109580.0,109570.0,1.22195652]
[1748335150905,0.01674923,109580.0,109570.0,1.19457252]
[1748335151115,0.01674923,109580.0,109570.0,1.21087252]
[1748335151116,0.00114923,109580.0,109570.0,1.21087252]
[1748335151319,0.00114923,109580.0,109570.0,1.19457252]
[1748335151532,0.00114923,109580.0,109570.0,0.84110217]
[1748335151740,0.00114923,109580.0,109570.0,1.19457252]
[1748335151946,0.00114923,109580.0,109570.0,1.20546271]
[1748335153258,0.01644923,109580.0,109570.0,1.20546271]
[1748335156490,0.01644923,109580.0,109570.0,0.57839236]
[1748335156729,0.01644923,109580.0,109570.0,1.20546271]
[1748335158053,0.00114923,109580.0,109570.0,1.20546271]
[1748335158630,0.00114923,109580.0,109570.0,1.09757336]
[1748335158841,0.00114923,109580.0,109570.0,1.45104371]
[1748335160745,0.00114923,109580.0,109570.0,1.43504371]
[1748335160980,0.1415452,109580.0,109570.0,0.92273655]
[1748335161209,0.1506707,109580.0,109570.0,0.92273655]
[1748335161462,0.1506707,109580.0,109570.0,0.91184636]
[1748335161685,0.15979628,109580.0,109570.0,0.91184636]
[1748335162129,0.1506707,109580.0,109570.0,0.91184636]
[1748335162655,0.13241987,109580.0,109570.0,0.91184636]
[1748335162881,0.15067061,109580.0,109570.0,0.91184636]
[1748335163084,0.1506707,109580.0,109570.0,0.91184636]
[1748335164530,0.14154512,109580.0,109570.0,0.91184636]
[1748335164730,0.13241987,109580.0,109570.0,0.91184636]
[1748335165285,0.14154512,109580.0,109570.0,0.91184636]
[1748335165913,0.13241987,109580.0,109570.0,0.91184636]
[1748335166605,0.14154512,109580.0,109570.0,0.91184636]
[1748335167042,0.13241987,109580.0,109570.0,0.91184636]
[1748335167381,0.13241987,109580.0,109570.0,0.55837601]
[1748335167592,0.14154512,109580.0,109570.0,0.91184636]
[1748335167810,0.13241987,109580.0,109570.0,0.91184636]
[1748335168839,0.13241987,109580.0,109570.0,0.55837601]
[1748335169051,0.13241987,109580.0,109570.0,0.91184636]
[1748335171897,0.13241987,109580.0,109570.0,0.55837601]
[1748335172118,0.13241987,109580.0,109570.0,0.91184636]
[1748335175619,0.13241987,109580.0,109570.0,0.55837601]
[1748335175833,0.13241987,109580.0,109570.0,0.91184636]
[1748335176061,0.13241987,109580.0,109570.0,0.87677541]
[1748335179163,0.12329479,109580.0,109570.0,0.87677541]
[1748335179399,0.13241987,109580.0,109570.0,0.87677541]
[1748335179645,0.11581987,109580.0,109570.0,0.87677541]
[1748335180071,0.11581987,109580.0,109570.0,0.55837601]
[1748335180285,0.09981987,109580.0,109570.0,0.87677541]
[1748335180707,0.09069479,109580.0,109570.0,0.87677541]
[1748335181179,0.09981987,109580.0,109570.0,0.87677541]
[1748335182380,0.09981987,109580.0,109570.0,0.8876656]
[1748335185033,0.09981987,109580.0,109570.0,0.5692662]
[1748335185213,0.10894512,109580.0,109570.0,0.8876656]
[1748335185657,0.1260324,109580.0,109570.0,0.8876656]
[1748335185863,0.11690715,109580.0,109570.0,0.8876656]
[1748335186106,0.12603248,109580.0,109570.0,0.8876656]
[1748335186317,0.11690715,109580.0,109570.0,0.8876656]
[1748335186544,0.01823651,109580.0,109570.0,0.87677541]
[1748335186903,0.00114923,109580.0,109570.0,0.87677541]
[1748335187637,0.00114923,109580.0,109570.0,0.8876656]
[1748335190144,0.01027431,109580.0,109570.0,0.8876656]
[1748335190556,0.00114923,109580.0,109570.0,0.8876656]
[1748335190751,0.01027423,109580.0,109570.0,0.8876656]
[1748335190915,0.01824822,109580.0,109570.0,0.8876656]
[1748335191120,0.02737322,109580.0,109570.0,0.8876656]
[1748335192460,0.20988827,109580.0,109570.0,0.8876656]
[1748335192660,0.04562379,109580.0,109570.0,0.89679168]
[1748335193234,0.05474937,109580.0,109570.0,0.89679168]
[1748335193444,0.05474937,109580.0,109570.0,0.88590149]
[1748335193665,0.04562379,109580.0,109570.0,0.88590149]
[1748335193864,0.05474937,109580.0,109570.0,0.88590149]
[1748335195818,0.05474937,109580.0,109570.0,0.56750209]
[1748335196041,0.05474937,109580.0,109570.0,0.88590149]
[1748335196042,0.04562379,109580.0,109570.0,0.88590149]
[1748335196247,0.05474937,109580.0,109570.0,0.88590149]
[1748335196452,0.05474929,109580.0,109570.0,0.88590149]
[1748335197497,0.05474929,109580.0,109570.0,0.56750209]
[1748335197890,0.05474929,109580.0,109570.0,0.88590149]
[1748335198086,0.06387487,109580.0,109570.0,0.88590149]
[1748335198394,0.33593623,109580.0,109570.0,0.86764941]
[1748335198585,0.33593623,109580.0,109570.0,0.87677549]
[1748335198982,0.33593623,109580.0,109570.0,0.88590149]
[1748335199160,0.15342118,109580.0,109570.0,0.88590149]
[1748335199528,0.14429543,109580.0,109570.0,0.88590149]
[1748335199682,0.33593614,109580.0,109570.0,0.88590149]
[1748335199909,0.15342109,109580.0,109570.0,0.88590149]
[1748335201180,0.33593614,109580.0,109570.0,0.55837609]
[1748335201389,0.14429593,109580.0,109570.0,0.88590149]
[1748335201683,0.13517027,109580.0,109570.0,0.88590149]
[1748335204606,0.12604469,109580.0,109570.0,0.88590149]
[1748335204843,0.13517027,109580.0,109570.0,0.88590149]
[1748335205498,0.12604469,109580.0,109570.0,0.88590149]
[1748335205714,0.13517027,109580.0,109570.0,0.88590149]
[1748335206336,0.13517027,109580.0,109570.0,0.83294879]
[1748335207152,0.12604469,109580.0,109570.0,0.83294879]
[1748335208222,0.11691894,109580.0,109570.0,0.83294879]
[1748335208435,0.12604435,109580.0,109570.0,0.83294879]
[1748335208853,0.13516993,109580.0,109570.0,0.83294879]
[1748335209280,0.12604435,109580.0,109570.0,0.83294879]
[1748335209984,0.11691894,109580.0,109570.0,0.83294879]
[1748335210195,0.01824822,109580.0,109570.0,0.83294879]
[1748335210409,0.02737338,109580.0,109570.0,0.83294879]
[1748335210617,0.0273733,109580.0,109570.0,0.83294879]
[1748335211492,0.01824822,109580.0,109570.0,0.83294879]
[1748335211865,0.0273733,109580.0,109570.0,0.83294879]
[1748335212070,0.01824822,109580.0,109570.0,0.83294879]
[1748335212281,0.01724822,109580.0,109570.0,0.82894879]
[1748335212486,0.01824822,109580.0,109570.0,0.83194879]
[1748335212719,0.01824822,109580.0,109570.0,0.82794879]
[1748335213069,0.01824822,109580.0,109570.0,0.51254939]
[1748335213286,0.01824822,109580.0,109570.0,0.83094879]
[1748335213648,0.01824822,109580.0,109570.0,0.84183898]
[1748335214309,0.01824098,109580.0,109570.0,0.84183898]
[1748335215709,0.00114923,109580.0,109570.0,0.84183898]
[1748335218650,0.20114923,109580.0,109570.0,0.84183898]
[1748335220438,0.21027423,109580.0,109570.0,0.84183898]
[1748335221003,0.21939939,109580.0,109570.0,1.11547898]
[1748335221196,0.21027423,109580.0,109570.0,1.11547898]
[1748335222621,0.21939939,109580.0,109570.0,1.11547898]
[1748335224483,0.22852472,109580.0,109570.0,1.11547898]
[1748335225060,0.22852472,109580.0,109570.0,0.79707958]
[1748335225266,0.22852472,109580.0,109570.0,1.11547898]
[1748335226456,0.23765013,109580.0,109570.0,1.11547898]
[1748335226653,0.22852472,109580.0,109570.0,1.11547898]
[1748335227469,0.22852472,109580.0,109570.0,0.84183898]
[1748335227890,0.23765005,109580.0,109570.0,0.84183898]
[1748335228480,0.22852464,109580.0,109570.0,0.84183898]
[1748335228689,0.23765005,109580.0,109570.0,0.84183898]
[1748335229645,0.23765014,109580.0,109570.0,0.52343958]
[1748335229882,0.44504276,109580.0,109570.0,0.67528959]
[1748335230100,0.41900468,109580.0,109570.0,0.87607438]
[1748335230339,0.41900468,109580.0,109570.0,0.88520079]
[1748335230550,0.41900468,109580.0,109570.0,0.88343693]
[1748335230758,0.41900468,109580.0,109570.0,0.89256318]
[1748335231174,0.41900468,109580.0,109570.0,0.89256276]
[1748335231587,0.42813034,109580.0,109570.0,0.89256234]
[1748335231791,0.43725609,109580.0,109570.0,0.89256234]
[1748335232268,0.43725609,109580.0,109570.0,0.89256193]
[1748335232698,0.45305609,109580.0,109570.0,0.89256193]
[1748335233211,0.45305609,109580.0,109570.0,0.88343593]
[1748335233990,0.45305609,109580.0,109570.0,0.87430985]
[1748335234622,0.27054104,109580.0,109570.0,0.88343593]
[1748335234807,0.26141529,109580.0,109570.0,0.88343593]
[1748335235224,0.25229102,109580.0,109570.0,0.89256193]
[1748335235434,0.2614166,109580.0,109570.0,0.89256193]
[1748335238220,0.25229102,109580.0,109570.0,0.89256193]
[1748335241086,0.2614166,109580.0,109570.0,0.89256193]
[1748335241289,0.25229102,109580.0,109570.0,0.89256193]
[1748335242417,0.2614166,109580.0,109570.0,0.89256193]
[1748335242632,0.25229102,109580.0,109570.0,0.89256193]
[1748335244686,0.2614166,109580.0,109570.0,0.89256193]
[1748335244826,0.45305731,109580.0,109570.0,0.89256193]
[1748335247242,0.27054226,109580.0,109570.0,0.89256193]
[1748335247463,0.45305731,109580.0,109570.0,0.89256193]
[1748335247970,0.27054226,109580.0,109570.0,0.89256193]
[1748335251306,0.55760287,109580.0,109570.0,0.85605761]
[1748335251524,0.55760287,109580.0,109570.0,0.86518394]
[1748335251737,0.55760287,109580.0,109570.0,0.8743101]
[1748335252692,0.56672862,109580.0,109570.0,0.88343618]
[1748335253748,0.37508782,109580.0,109570.0,0.89256218]
[1748335253976,0.36008782,109580.0,109570.0,0.89256218]
[1748335255499,0.55172862,109580.0,109570.0,0.89256218]
[1748335256058,0.55810337,109580.0,109570.0,0.86518394]
[1748335256275,0.55810337,109580.0,109570.0,0.8743101]
[1748335256490,0.55810337,109580.0,109570.0,0.88343618]
[1748335256907,0.55810337,109580.0,109570.0,0.89256218]
[1748335257907,0.36646257,109580.0,109570.0,0.89256218]
[1748335258936,0.35733658,109580.0,109570.0,0.89256218]
[1748335259089,0.36646216,109580.0,109570.0,0.89256218]
[1748335262378,0.35733658,109580.0,109570.0,0.89256218]
[1748335262550,0.35096216,109580.0,109570.0,0.89256218]
[1748335263274,0.34183658,109580.0,109570.0,0.89256218]
[1748335263483,0.21824027,109580.0,109570.0,0.92426218]